[Event "Titled Tuesday Blitz August 09 Early 2022"]
[White "Remolar Gallen, Jose"]
[Black "Toncheva, Nadya"]
[WhiteFideId "2215187"]
[BlackFideId "2924056"]
[WhiteElo "2205"]
[BlackElo "1888"]
[Result "1-0"]
[Round "08"]
[TimeControl "180+1"]
[Date "2022.08.09"]
[WhiteClock "0:00:10"]
[BlackClock "0:00:04"]

1. d4 {[%clk 0:03:00]}  d5 {[%clk 0:02:59]} 2. c4 {[%clk 0:03:00]}  dxc4 {[%clk 0:03:00]} 3. Nf3 {[%clk 0:02:56]}  Nf6 {[%clk 0:03:01]} 4. e3 {[%clk 0:02:56]}  Bg4 {[%clk 0:03:01]} 5. Bxc4 {[%clk 0:02:56]}  e6 {[%clk 0:03:02]} 6. O-O {[%clk 0:02:55]}  a6 {[%clk 0:03:00]} 7. h3 {[%clk 0:02:55]}  Bh5 {[%clk 0:03:00]} 8. Nc3 {[%clk 0:02:51]}  Nc6 {[%clk 0:03:00]} 9. Ne2 {[%clk 0:02:41]}  Bd6 {[%clk 0:02:56]} 10. a3 {[%clk 0:02:16]}  O-O {[%clk 0:02:55]} 11. Qc2 {[%clk 0:02:14]}  Qe7 {[%clk 0:02:37]} 12. e4 {[%clk 0:02:10]}  Bxf3 {[%clk 0:02:33]} 13. gxf3 {[%clk 0:02:11]}  e5 {[%clk 0:02:33]} 14. d5 {[%clk 0:02:11]}  Na7 {[%clk 0:02:30]} 15. Ng3 {[%clk 0:02:07]}  g6 {[%clk 0:02:26]} 16. Bg5 {[%clk 0:02:00]}  Qd8 {[%clk 0:01:58]} 17. Kh1 {[%clk 0:01:37]}  Be7 {[%clk 0:01:57]} 18. Rg1 {[%clk 0:01:31]}  Kh8 {[%clk 0:01:55]} 19. Qc3 {[%clk 0:01:23]}  Qd6 {[%clk 0:01:48]} 20. Bh6 {[%clk 0:01:06]}  Rg8 {[%clk 0:01:38]} 21. Rgd1 {[%clk 0:00:59]}  Bf8 {[%clk 0:01:33]} 22. Be3 {[%clk 0:00:56]}  Bg7 {[%clk 0:01:24]} 23. b4 {[%clk 0:00:54]}  Rgd8 {[%clk 0:01:10]} 24. Rac1 {[%clk 0:00:48]}  Ne8 {[%clk 0:01:02]} 25. Bf1 {[%clk 0:00:42]}  Nb5 {[%clk 0:00:59]} 26. Bxb5 {[%clk 0:00:37]}  axb5 {[%clk 0:01:00]} 27. Kg2 {[%clk 0:00:36]}  h5 {[%clk 0:00:54]} 28. h4 {[%clk 0:00:33]}  Qe7 {[%clk 0:00:47]} 29. Bg5 {[%clk 0:00:32]}  Bf6 {[%clk 0:00:42]} 30. Qe3 {[%clk 0:00:24]}  Kh7 {[%clk 0:00:35]} 31. Rc5 {[%clk 0:00:12]}  c6 {[%clk 0:00:29]} 32. f4 {[%clk 0:00:12]}  Bxg5 {[%clk 0:00:27]} 33. hxg5 {[%clk 0:00:11]}  cxd5 {[%clk 0:00:16]} 34. exd5 {[%clk 0:00:08]}  Nd6 {[%clk 0:00:13]} 35. fxe5 {[%clk 0:00:08]}  Nc4 {[%clk 0:00:14]} 36. Rxc4 {[%clk 0:00:07]}  bxc4 {[%clk 0:00:14]} 37. Qf4 {[%clk 0:00:05]}  Rxa3 {[%clk 0:00:13]} 38. Ne4 {[%clk 0:00:05]}  Rd3 {[%clk 0:00:10]} 39. Nf6+ {[%clk 0:00:06]}  Kg7 {[%clk 0:00:09]} 40. Rc1 {[%clk 0:00:06]}  c3 {[%clk 0:00:09]} 41. Qe4 {[%clk 0:00:05]}  Rd2 {[%clk 0:00:06]} 42. Rxc3 {[%clk 0:00:04]}  Ra8 {[%clk 0:00:04]} 43. Rf3 {[%clk 0:00:04]}  Raa2 {[%clk 0:00:04]} 44. Qf4 {[%clk 0:00:04]}  Re2 {[%clk 0:00:03]} 45. e6 {[%clk 0:00:04]}  fxe6 {[%clk 0:00:03]} 46. d6 {[%clk 0:00:05]}  Qf7 {[%clk 0:00:02]} 47. Qd4 {[%clk 0:00:05]}  e5 {[%clk 0:00:02]} 48. Nxh5+ {[%clk 0:00:05]}  gxh5 {[%clk 0:00:02]} 49. Rxf7+ {[%clk 0:00:05]}  Kxf7 {[%clk 0:00:03]} 50. Qd5+ {[%clk 0:00:05]}  Kg6 {[%clk 0:00:03]} 51. Qe6+ {[%clk 0:00:05]}  Kxg5 {[%clk 0:00:03]} 52. Qe7+ {[%clk 0:00:05]}  Kf5 {[%clk 0:00:04]} 53. Qf7+ {[%clk 0:00:06]}  Ke4 {[%clk 0:00:03]} 54. d7 {[%clk 0:00:07]}  Rad2 {[%clk 0:00:03]} 55. Qf3+ {[%clk 0:00:06]}  Kd4 {[%clk 0:00:03]} 56. d8=Q+ {[%clk 0:00:07]}  Kc4 {[%clk 0:00:04]} 57. Qc7+ {[%clk 0:00:08]}  Kxb4 {[%clk 0:00:04]} 58. Qfc3+ {[%clk 0:00:09]}  Kb5 {[%clk 0:00:04]} 59. Q7c5+ {[%clk 0:00:09]}  Ka6 {[%clk 0:00:04]} 60. Q3a5# {[%clk 0:00:10]} 1-0


[Site "https://www.chess.com"]

[Event "Titled Tuesday Blitz August 09 Early 2022"]
[White "Salem, A.R. Saleh"]
[Black "Vasquez Schroeder, Rodrigo"]
[WhiteFideId "9301348"]
[BlackFideId "3400042"]
[WhiteElo "2917"]
[BlackElo "2876"]
[Result "1-0"]
[Round "08"]
[TimeControl "180+1"]
[Date "2022.08.09"]
[WhiteClock "0:00:16"]
[BlackClock "0:00:24"]

1. d4 {[%clk 0:03:00]}  d5 {[%clk 0:02:59]} 2. c4 {[%clk 0:03:01]}  c6 {[%clk 0:02:55]} 3. Nc3 {[%clk 0:03:02]}  Nf6 {[%clk 0:02:53]} 4. Nf3 {[%clk 0:03:02]}  e6 {[%clk 0:02:53]} 5. g3 {[%clk 0:03:01]}  Nbd7 {[%clk 0:02:52]} 6. Bg2 {[%clk 0:03:01]}  dxc4 {[%clk 0:02:51]} 7. O-O {[%clk 0:03:02]}  b5 {[%clk 0:02:51]} 8. e4 {[%clk 0:03:03]}  Bb7 {[%clk 0:02:50]} 9. e5 {[%clk 0:03:03]}  Nd5 {[%clk 0:02:50]} 10. Ng5 {[%clk 0:03:04]}  h6 {[%clk 0:02:44]} 11. Nge4 {[%clk 0:03:03]}  Qb6 {[%clk 0:02:40]} 12. Qg4 {[%clk 0:02:53]}  O-O-O {[%clk 0:02:31]} 13. Be3 {[%clk 0:02:53]}  a6 {[%clk 0:02:21]} 14. a4 {[%clk 0:02:51]}  Re8 {[%clk 0:02:12]} 15. Qh5 {[%clk 0:02:47]}  g6 {[%clk 0:02:10]} 16. Qf3 {[%clk 0:02:47]}  Rh7 {[%clk 0:02:09]} 17. Qe2 {[%clk 0:02:20]}  c5 {[%clk 0:02:06]} 18. axb5 {[%clk 0:02:19]}  axb5 {[%clk 0:02:02]} 19. dxc5 {[%clk 0:01:19]}  Nxc5 {[%clk 0:01:48]} 20. Nxd5 {[%clk 0:01:13]}  exd5 {[%clk 0:01:32]} 21. Nf6 {[%clk 0:01:13]}  d4 {[%clk 0:01:15]} 22. Qg4+ {[%clk 0:00:56]}  Re6 {[%clk 0:01:03]} 23. Bxb7+ {[%clk 0:00:46]}  Qxb7 {[%clk 0:01:00]} 24. Nxh7 {[%clk 0:00:45]}  h5 {[%clk 0:00:53]} 25. Qxd4 {[%clk 0:00:44]}  Nb3 {[%clk 0:00:49]} 26. Qa7 {[%clk 0:00:35]}  Nxa1 {[%clk 0:00:42]} 27. Rxa1 {[%clk 0:00:23]}  Be7 {[%clk 0:00:41]} 28. Qd4 {[%clk 0:00:16]}  h4 {[%clk 0:00:34]} 29. Ng5 {[%clk 0:00:15]}  Bxg5 {[%clk 0:00:32]} 30. Bxg5 {[%clk 0:00:16]}  Re8 {[%clk 0:00:25]} 31. Bxh4 {[%clk 0:00:16]}  Qc6 {[%clk 0:00:24]} 32. Bf6 {[%clk 0:00:16]} 1-0


[Site "https://www.chess.com"]

[Event "Titled Tuesday Blitz August 09 Early 2022"]
[White "Samunenkov, Ihor"]
[Black "Altman, Joshua"]
[WhiteFideId "14187086"]
[BlackFideId "426210"]
[WhiteElo "2695"]
[BlackElo "2609"]
[Result "1-0"]
[Round "08"]
[TimeControl "180+1"]
[Date "2022.08.09"]
[WhiteClock "0:00:05"]
[BlackClock "0:00:37"]

1. d4 {[%clk 0:03:00]}  Nf6 {[%clk 0:02:59]} 2. c4 {[%clk 0:03:00]}  e6 {[%clk 0:02:59]} 3. Nf3 {[%clk 0:03:00]}  b6 {[%clk 0:03:00]} 4. g3 {[%clk 0:03:00]}  Bb7 {[%clk 0:03:00]} 5. Bg2 {[%clk 0:03:00]}  Bb4+ {[%clk 0:03:00]} 6. Bd2 {[%clk 0:02:56]}  Bxd2+ {[%clk 0:03:00]} 7. Qxd2 {[%clk 0:02:52]}  O-O {[%clk 0:03:00]} 8. O-O {[%clk 0:02:52]}  d6 {[%clk 0:03:00]} 9. Nc3 {[%clk 0:02:51]}  Ne4 {[%clk 0:03:00]} 10. Nxe4 {[%clk 0:02:12]}  Bxe4 {[%clk 0:03:01]} 11. b4 {[%clk 0:01:26]}  a5 {[%clk 0:03:00]} 12. a3 {[%clk 0:01:25]}  Nd7 {[%clk 0:03:00]} 13. e3 {[%clk 0:01:24]}  Qe7 {[%clk 0:02:59]} 14. Qe2 {[%clk 0:01:23]}  h6 {[%clk 0:02:58]} 15. Bh3 {[%clk 0:01:23]}  f5 {[%clk 0:02:43]} 16. Nd2 {[%clk 0:01:05]}  Bb7 {[%clk 0:02:43]} 17. e4 {[%clk 0:01:02]}  Qf6 {[%clk 0:02:14]} 18. Qe3 {[%clk 0:00:39]}  c5 {[%clk 0:01:36]} 19. bxc5 {[%clk 0:00:35]}  dxc5 {[%clk 0:01:31]} 20. d5 {[%clk 0:00:33]}  exd5 {[%clk 0:01:15]} 21. cxd5 {[%clk 0:00:34]}  Rae8 {[%clk 0:01:12]} 22. Bxf5 {[%clk 0:00:33]}  Ne5 {[%clk 0:01:06]} 23. f4 {[%clk 0:00:29]}  Nf7 {[%clk 0:01:04]} 24. Be6 {[%clk 0:00:28]}  Kh8 {[%clk 0:01:01]} 25. Rab1 {[%clk 0:00:22]}  Nd8 {[%clk 0:00:56]} 26. Rxb6 {[%clk 0:00:17]}  Nxe6 {[%clk 0:00:56]} 27. dxe6 {[%clk 0:00:17]}  Ba8 {[%clk 0:00:54]} 28. Qxc5 {[%clk 0:00:11]}  Rc8 {[%clk 0:00:47]} 29. e7 {[%clk 0:00:09]}  Rfe8 {[%clk 0:00:35]} 30. Rxf6 {[%clk 0:00:09]}  Rxc5 {[%clk 0:00:34]} 31. Rf8+ {[%clk 0:00:09]}  Kh7 {[%clk 0:00:34]} 32. Rxe8 {[%clk 0:00:10]}  Bxe4 {[%clk 0:00:35]} 33. Nxe4 {[%clk 0:00:10]}  Re5 {[%clk 0:00:36]} 34. fxe5 {[%clk 0:00:10]}  g6 {[%clk 0:00:36]} 35. Nf6+ {[%clk 0:00:10]}  Kg7 {[%clk 0:00:36]} 36. Rf8 {[%clk 0:00:10]}  g5 {[%clk 0:00:36]} 37. Nd7 {[%clk 0:00:07]}  g4 {[%clk 0:00:36]} 38. R1f7+ {[%clk 0:00:07]}  Kg6 {[%clk 0:00:36]} 39. Nf6 {[%clk 0:00:07]}  h5 {[%clk 0:00:37]} 40. Ne4 {[%clk 0:00:05]}  h4 {[%clk 0:00:37]} 41. Rf6+ {[%clk 0:00:04]}  Kg7 {[%clk 0:00:37]} 42. e8=N+ {[%clk 0:00:04]}  Kh7 {[%clk 0:00:37]} 43. Ng5# {[%clk 0:00:05]} 1-0


[Site "https://www.chess.com"]

[Event "Titled Tuesday Blitz August 09 Early 2022"]
[White "Sarana, Alexey"]
[Black "Sychev, Klementy"]
[WhiteFideId "24133795"]
[BlackFideId "4114060"]
[WhiteElo "3064"]
[BlackElo "2652"]
[Result "1-0"]
[Round "08"]
[TimeControl "180+1"]
[Date "2022.08.09"]
[WhiteClock "0:00:05"]
[BlackClock "0:00:02"]

1. c4 {[%clk 0:03:00]}  e5 {[%clk 0:02:55]} 2. Nc3 {[%clk 0:03:00]}  Nf6 {[%clk 0:02:52]} 3. Nf3 {[%clk 0:03:01]}  Nc6 {[%clk 0:02:52]} 4. g3 {[%clk 0:03:01]}  d5 {[%clk 0:02:50]} 5. cxd5 {[%clk 0:03:01]}  Nxd5 {[%clk 0:02:50]} 6. Bg2 {[%clk 0:03:01]}  Nb6 {[%clk 0:02:49]} 7. b3 {[%clk 0:03:01]}  f6 {[%clk 0:02:31]} 8. Bb2 {[%clk 0:02:59]}  Be6 {[%clk 0:02:30]} 9. O-O {[%clk 0:02:54]}  Qd7 {[%clk 0:02:30]} 10. e3 {[%clk 0:02:42]}  O-O-O {[%clk 0:02:28]} 11. d4 {[%clk 0:02:42]}  exd4 {[%clk 0:02:27]} 12. Nxd4 {[%clk 0:02:36]}  Nxd4 {[%clk 0:02:27]} 13. exd4 {[%clk 0:02:37]}  Bh3 {[%clk 0:02:27]} 14. Bxh3 {[%clk 0:02:28]}  Qxh3 {[%clk 0:02:27]} 15. Rc1 {[%clk 0:02:28]}  Kb8 {[%clk 0:02:23]} 16. Qf3 {[%clk 0:02:21]}  h5 {[%clk 0:02:17]} 17. Nb5 {[%clk 0:02:17]}  Nd5 {[%clk 0:02:16]} 18. Rfe1 {[%clk 0:02:05]}  Bb4 {[%clk 0:02:08]} 19. Re4 {[%clk 0:01:51]}  Qd7 {[%clk 0:01:47]} 20. a4 {[%clk 0:01:34]}  a6 {[%clk 0:01:45]} 21. Na3 {[%clk 0:01:32]}  h4 {[%clk 0:01:41]} 22. g4 {[%clk 0:01:20]}  h3 {[%clk 0:01:38]} 23. Nc4 {[%clk 0:01:20]}  g6 {[%clk 0:01:22]} 24. Ne3 {[%clk 0:01:19]}  Bd2 {[%clk 0:01:10]} 25. Nxd5 {[%clk 0:01:14]}  Qxd5 {[%clk 0:00:50]} 26. Rc5 {[%clk 0:01:13]}  Qd6 {[%clk 0:00:45]} 27. Rc2 {[%clk 0:01:02]}  Bb4 {[%clk 0:00:39]} 28. Rce2 {[%clk 0:00:59]}  Qd5 {[%clk 0:00:35]} 29. Rf4 {[%clk 0:00:55]}  f5 {[%clk 0:00:28]} 30. gxf5 {[%clk 0:00:43]}  gxf5 {[%clk 0:00:26]} 31. Rxf5 {[%clk 0:00:34]}  Rhg8+ {[%clk 0:00:15]} 32. Kf1 {[%clk 0:00:33]}  Qd6 {[%clk 0:00:13]} 33. Ree5 {[%clk 0:00:28]}  Rdf8 {[%clk 0:00:09]} 34. Qxh3 {[%clk 0:00:25]}  Qc6 {[%clk 0:00:08]} 35. Qd3 {[%clk 0:00:04]}  Qh1+ {[%clk 0:00:07]} 36. Ke2 {[%clk 0:00:05]}  Qxh2 {[%clk 0:00:06]} 37. Qf3 {[%clk 0:00:05]}  Bd6 {[%clk 0:00:05]} 38. Re6 {[%clk 0:00:02]}  Re8 {[%clk 0:00:05]} 39. d5 {[%clk 0:00:02]}  Qh7 {[%clk 0:00:04]} 40. Qe4 {[%clk 0:00:02]}  Qd7 {[%clk 0:00:04]} 41. Rff6 {[%clk 0:00:02]}  Ka7 {[%clk 0:00:03]} 42. Bd4+ {[%clk 0:00:02]}  Ka8 {[%clk 0:00:03]} 43. Kd3 {[%clk 0:00:02]}  b6 {[%clk 0:00:04]} 44. f4 {[%clk 0:00:03]}  Kb7 {[%clk 0:00:04]} 45. Kc2 {[%clk 0:00:03]}  Rd8 {[%clk 0:00:03]} 46. Rf5 {[%clk 0:00:03]}  Bb4 {[%clk 0:00:03]} 47. Ref6 {[%clk 0:00:02]}  Bd6 {[%clk 0:00:02]} 48. Re6 {[%clk 0:00:02]}  Qc8 {[%clk 0:00:02]} 49. Rg5 {[%clk 0:00:03]}  Rd7 {[%clk 0:00:02]} 50. Rgg6 {[%clk 0:00:02]}  Rf7 {[%clk 0:00:02]} 51. f5 {[%clk 0:00:03]}  Rh7 {[%clk 0:00:02]} 52. Be3 {[%clk 0:00:02]}  Rh2+ {[%clk 0:00:03]} 53. Kd3 {[%clk 0:00:03]}  Qf8 {[%clk 0:00:03]} 54. f6 {[%clk 0:00:02]}  Rh3 {[%clk 0:00:03]} 55. f7 {[%clk 0:00:02]}  Rxg6 {[%clk 0:00:02]} 56. Qxg6 {[%clk 0:00:02]}  Bc5 {[%clk 0:00:02]} 57. Kd2 {[%clk 0:00:02]}  Rxe3 {[%clk 0:00:02]} 58. Rxe3 {[%clk 0:00:03]}  Bxe3+ {[%clk 0:00:02]} 59. Kxe3 {[%clk 0:00:04]}  Qc5+ {[%clk 0:00:02]} 60. Kf4 {[%clk 0:00:04]}  Qf2+ {[%clk 0:00:02]} 61. Kg5 {[%clk 0:00:04]}  Qe3+ {[%clk 0:00:03]} 62. Kf6 {[%clk 0:00:04]}  Qd4+ {[%clk 0:00:02]} 63. Ke6 {[%clk 0:00:05]}  Qe3+ {[%clk 0:00:02]} 64. Kd7 {[%clk 0:00:05]}  Qe5 {[%clk 0:00:02]} 65. Qc6+ {[%clk 0:00:05]}  Kb8 {[%clk 0:00:02]} 66. f8=Q+ {[%clk 0:00:05]} 1-0


[Site "https://www.chess.com"]

[Event "Titled Tuesday Blitz August 09 Early 2022"]
[White "Shapiro, Daniel"]
[Black "Golding, Alex"]
[WhiteFideId "2001780"]
[BlackFideId "427241"]
[WhiteElo "2250"]
[BlackElo "2029"]
[Result "0-1"]
[Round "08"]
[TimeControl "180+1"]
[Date "2022.08.09"]
[WhiteClock "0:01:29"]
[BlackClock "0:01:37"]

1. d4 {[%clk 0:03:00]}  d5 {[%clk 0:02:55]} 2. c4 {[%clk 0:03:00]}  dxc4 {[%clk 0:02:54]} 3. e4 {[%clk 0:03:00]}  e6 {[%clk 0:02:55]} 4. Nf3 {[%clk 0:02:59]}  a6 {[%clk 0:02:55]} 5. Bxc4 {[%clk 0:02:59]}  b5 {[%clk 0:02:55]} 6. Bd3 {[%clk 0:02:59]}  Bb7 {[%clk 0:02:55]} 7. O-O {[%clk 0:02:42]}  c5 {[%clk 0:02:54]} 8. dxc5 {[%clk 0:02:39]}  Bxc5 {[%clk 0:02:54]} 9. Qe2 {[%clk 0:02:39]}  Qe7 {[%clk 0:02:43]} 10. Bg5 {[%clk 0:02:35]}  f6 {[%clk 0:02:39]} 11. Bh4 {[%clk 0:02:25]}  e5 {[%clk 0:02:29]} 12. Nc3 {[%clk 0:02:21]}  Nc6 {[%clk 0:02:17]} 13. Nd5 {[%clk 0:02:21]}  Qf7 {[%clk 0:02:17]} 14. Rac1 {[%clk 0:02:19]}  Bd6 {[%clk 0:02:11]} 15. Bxb5 {[%clk 0:02:08]}  axb5 {[%clk 0:02:08]} 16. Qxb5 {[%clk 0:02:08]}  Ra5 {[%clk 0:01:58]} 17. Qb6 {[%clk 0:02:04]}  Ra6 {[%clk 0:01:58]} 18. Qb5 {[%clk 0:01:54]}  Nh6 {[%clk 0:01:56]} 19. Rfd1 {[%clk 0:01:47]}  O-O {[%clk 0:01:50]} 20. Nxf6+ {[%clk 0:01:43]}  gxf6 {[%clk 0:01:46]} 21. Rxd6 {[%clk 0:01:44]}  Nb8 {[%clk 0:01:41]} 22. Rd7 {[%clk 0:01:29]}  Qxd7 {[%clk 0:01:37]} 0-1


[Site "https://www.chess.com"]

[Event "Titled Tuesday Blitz August 09 Early 2022"]
[White "Stelmaszyk, Nico"]
[Black "Clawitter, Craig"]
[WhiteFideId "16200462"]
[BlackFideId "2023105"]
[WhiteElo "2119"]
[BlackElo "2189"]
[Result "0-1"]
[Round "08"]
[TimeControl "180+1"]
[Date "2022.08.09"]
[WhiteClock "0:01:12"]
[BlackClock "0:00:17"]

1. d4 {[%clk 0:03:00]}  e6 {[%clk 0:02:59]} 2. c4 {[%clk 0:03:00]}  Nf6 {[%clk 0:02:59]} 3. Nf3 {[%clk 0:02:59]}  d5 {[%clk 0:02:59]} 4. Nc3 {[%clk 0:02:58]}  c6 {[%clk 0:02:59]} 5. cxd5 {[%clk 0:02:57]}  exd5 {[%clk 0:02:59]} 6. Bg5 {[%clk 0:02:57]}  Be7 {[%clk 0:02:55]} 7. e3 {[%clk 0:02:57]}  Bf5 {[%clk 0:02:53]} 8. Bd3 {[%clk 0:02:56]}  Bxd3 {[%clk 0:02:54]} 9. Qxd3 {[%clk 0:02:57]}  Nbd7 {[%clk 0:02:54]} 10. O-O {[%clk 0:02:57]}  O-O {[%clk 0:02:54]} 11. Rab1 {[%clk 0:02:57]}  a5 {[%clk 0:02:42]} 12. a3 {[%clk 0:02:54]}  a4 {[%clk 0:02:40]} 13. Qc2 {[%clk 0:02:54]}  Nb6 {[%clk 0:02:25]} 14. Ne5 {[%clk 0:02:50]}  Nfd7 {[%clk 0:02:18]} 15. Bxe7 {[%clk 0:02:46]}  Qxe7 {[%clk 0:02:19]} 16. f4 {[%clk 0:02:46]}  Nxe5 {[%clk 0:02:10]} 17. fxe5 {[%clk 0:02:45]}  f6 {[%clk 0:02:10]} 18. Rf5 {[%clk 0:02:38]}  Nc4 {[%clk 0:02:02]} 19. exf6 {[%clk 0:02:25]}  Qxe3+ {[%clk 0:02:01]} 20. Kh1 {[%clk 0:02:24]}  Qxd4 {[%clk 0:01:44]} 21. f7+ {[%clk 0:01:59]}  Rxf7 {[%clk 0:01:10]} 22. Rxf7 {[%clk 0:02:00]}  Kxf7 {[%clk 0:01:10]} 23. Qxh7 {[%clk 0:01:56]}  Rf8 {[%clk 0:01:00]} 24. Rf1+ {[%clk 0:01:49]}  Ke7 {[%clk 0:01:00]} 25. Re1+ {[%clk 0:01:45]}  Kd8 {[%clk 0:00:54]} 26. Nxa4 {[%clk 0:01:37]}  Qf2 {[%clk 0:00:39]} 27. Rg1 {[%clk 0:01:30]}  Ne3 {[%clk 0:00:35]} 28. Qd3 {[%clk 0:01:21]}  Rh8 {[%clk 0:00:23]} 29. h3 {[%clk 0:01:12]}  Qg3 {[%clk 0:00:17]} 0-1


[Site "https://www.chess.com"]

[Event "Titled Tuesday Blitz August 09 Early 2022"]
[White "Terrieux, Kevin"]
[Black "Yurovskykh, Oleksandr"]
[WhiteFideId "622591"]
[BlackFideId "14134020"]
[WhiteElo "2696"]
[BlackElo "2610"]
[Result "0-1"]
[Round "08"]
[TimeControl "180+1"]
[Date "2022.08.09"]
[WhiteClock "0:00:04"]
[BlackClock "0:00:23"]

1. d4 {[%clk 0:03:00]}  d5 {[%clk 0:02:46]} 2. e4 {[%clk 0:02:57]}  dxe4 {[%clk 0:02:46]} 3. Nc3 {[%clk 0:02:57]}  Nf6 {[%clk 0:02:46]} 4. f3 {[%clk 0:02:58]}  exf3 {[%clk 0:02:46]} 5. Nxf3 {[%clk 0:02:58]}  c6 {[%clk 0:02:45]} 6. Ne5 {[%clk 0:02:57]}  Bf5 {[%clk 0:02:37]} 7. g4 {[%clk 0:02:55]}  Be6 {[%clk 0:02:06]} 8. g5 {[%clk 0:02:40]}  Nd5 {[%clk 0:02:05]} 9. Qf3 {[%clk 0:02:39]}  Nd7 {[%clk 0:02:04]} 10. Nxd7 {[%clk 0:02:01]}  Qxd7 {[%clk 0:02:03]} 11. Ne4 {[%clk 0:02:00]}  Bg4 {[%clk 0:01:57]} 12. Qg2 {[%clk 0:02:00]}  Bf5 {[%clk 0:01:56]} 13. Bd3 {[%clk 0:01:47]}  e6 {[%clk 0:01:54]} 14. Bd2 {[%clk 0:01:43]}  Nb4 {[%clk 0:01:47]} 15. Bxb4 {[%clk 0:01:40]}  Bxb4+ {[%clk 0:01:48]} 16. c3 {[%clk 0:01:39]}  Qxd4 {[%clk 0:01:42]} 17. Ke2 {[%clk 0:01:00]}  Qe5 {[%clk 0:01:30]} 18. cxb4 {[%clk 0:00:54]}  Qxb2+ {[%clk 0:01:30]} 19. Kf3 {[%clk 0:00:41]}  Qxb4 {[%clk 0:01:28]} 20. Rab1 {[%clk 0:00:35]}  Qe7 {[%clk 0:01:28]} 21. Ke3 {[%clk 0:00:23]}  O-O-O {[%clk 0:01:26]} 22. Rb3 {[%clk 0:00:17]}  Rd7 {[%clk 0:01:21]} 23. Nf2 {[%clk 0:00:14]}  Rhd8 {[%clk 0:01:15]} 24. Bxf5 {[%clk 0:00:10]}  exf5+ {[%clk 0:01:15]} 25. Kf3 {[%clk 0:00:11]}  Rd2 {[%clk 0:01:04]} 26. Qg3 {[%clk 0:00:07]}  Rxf2+ {[%clk 0:00:26]} 27. Kxf2 {[%clk 0:00:07]}  Rd2+ {[%clk 0:00:26]} 28. Kf1 {[%clk 0:00:05]}  Qe2+ {[%clk 0:00:22]} 29. Kg1 {[%clk 0:00:04]}  Rd1+ {[%clk 0:00:23]} 0-1


[Site "https://www.chess.com"]

[Event "Titled Tuesday Blitz August 09 Early 2022"]
[White "Thiel, Thomas"]
[Black "White, John S."]
[WhiteFideId "4615964"]
[BlackFideId "2502348"]
[WhiteElo "2241"]
[BlackElo "2081"]
[Result "1-0"]
[Round "08"]
[TimeControl "180+1"]
[Date "2022.08.09"]
[WhiteClock "0:00:55"]
[BlackClock "0:00:13"]

1. e4 {[%clk 0:03:00]}  c5 {[%clk 0:02:58]} 2. Nc3 {[%clk 0:02:58]}  Nc6 {[%clk 0:02:54]} 3. Bb5 {[%clk 0:02:58]}  Nd4 {[%clk 0:02:53]} 4. Bc4 {[%clk 0:02:58]}  e6 {[%clk 0:02:51]} 5. Nge2 {[%clk 0:02:57]}  Nxe2 {[%clk 0:02:46]} 6. Qxe2 {[%clk 0:02:56]}  d6 {[%clk 0:02:45]} 7. O-O {[%clk 0:02:55]}  Nf6 {[%clk 0:02:43]} 8. d3 {[%clk 0:02:55]}  Be7 {[%clk 0:02:43]} 9. f4 {[%clk 0:02:55]}  d5 {[%clk 0:02:35]} 10. Bb5+ {[%clk 0:02:51]}  Bd7 {[%clk 0:02:30]} 11. e5 {[%clk 0:02:43]}  Ng8 {[%clk 0:02:19]} 12. f5 {[%clk 0:02:39]}  Bxb5 {[%clk 0:01:55]} 13. Nxb5 {[%clk 0:02:40]}  a6 {[%clk 0:01:52]} 14. fxe6 {[%clk 0:02:36]}  fxe6 {[%clk 0:01:45]} 15. Nc3 {[%clk 0:02:35]}  Bg5 {[%clk 0:01:31]} 16. Qg4 {[%clk 0:02:33]}  h6 {[%clk 0:01:02]} 17. Qxe6+ {[%clk 0:02:30]}  Ne7 {[%clk 0:00:59]} 18. Bxg5 {[%clk 0:02:27]}  hxg5 {[%clk 0:00:58]} 19. Qf7+ {[%clk 0:02:03]}  Kd7 {[%clk 0:00:55]} 20. Nxd5 {[%clk 0:02:03]}  Rf8 {[%clk 0:00:42]} 21. Qxe7+ {[%clk 0:02:00]}  Qxe7 {[%clk 0:00:41]} 22. Nxe7 {[%clk 0:02:00]}  Kxe7 {[%clk 0:00:41]} 23. Rxf8 {[%clk 0:01:59]}  Rxf8 {[%clk 0:00:39]} 24. Rf1 {[%clk 0:01:59]}  Rd8 {[%clk 0:00:29]} 25. Rf5 {[%clk 0:01:57]}  Ke6 {[%clk 0:00:26]} 26. Rxg5 {[%clk 0:01:56]}  Rd7 {[%clk 0:00:26]} 27. h4 {[%clk 0:01:54]}  Rf7 {[%clk 0:00:22]} 28. g4 {[%clk 0:01:26]}  b5 {[%clk 0:00:21]} 29. Rf5 {[%clk 0:01:22]}  Rd7 {[%clk 0:00:20]} 30. Kf2 {[%clk 0:01:21]}  Rd4 {[%clk 0:00:19]} 31. Kf3 {[%clk 0:01:18]}  c4 {[%clk 0:00:17]} 32. dxc4 {[%clk 0:01:18]}  Rxc4 {[%clk 0:00:16]} 33. c3 {[%clk 0:01:18]}  b4 {[%clk 0:00:16]} 34. cxb4 {[%clk 0:01:18]}  Rxb4 {[%clk 0:00:15]} 35. b3 {[%clk 0:01:18]}  Rd4 {[%clk 0:00:15]} 36. Rg5 {[%clk 0:01:17]}  Kf7 {[%clk 0:00:14]} 37. Ke3 {[%clk 0:01:14]}  Rd5 {[%clk 0:00:11]} 38. e6+ {[%clk 0:01:13]}  Kxe6 {[%clk 0:00:10]} 39. Rxd5 {[%clk 0:01:10]}  Kxd5 {[%clk 0:00:11]} 40. h5 {[%clk 0:01:05]}  Ke6 {[%clk 0:00:11]} 41. b4 {[%clk 0:01:03]}  Ke5 {[%clk 0:00:10]} 42. a4 {[%clk 0:01:01]}  Kd5 {[%clk 0:00:10]} 43. g5 {[%clk 0:00:58]}  Ke5 {[%clk 0:00:10]} 44. h6 {[%clk 0:00:58]}  gxh6 {[%clk 0:00:09]} 45. gxh6 {[%clk 0:00:59]}  Kf5 {[%clk 0:00:10]} 46. b5 {[%clk 0:00:58]}  axb5 {[%clk 0:00:09]} 47. axb5 {[%clk 0:00:59]}  Kg6 {[%clk 0:00:10]} 48. b6 {[%clk 0:00:59]}  Kxh6 {[%clk 0:00:11]} 49. b7 {[%clk 0:00:59]}  Kg6 {[%clk 0:00:11]} 50. b8=Q {[%clk 0:00:59]}  Kf6 {[%clk 0:00:12]} 51. Qd6+ {[%clk 0:00:57]}  Kf7 {[%clk 0:00:13]} 52. Kf4 {[%clk 0:00:57]}  Kg7 {[%clk 0:00:14]} 53. Kf5 {[%clk 0:00:56]}  Kg8 {[%clk 0:00:13]} 54. Qe7 {[%clk 0:00:55]}  Kh8 {[%clk 0:00:13]} 55. Kg6 {[%clk 0:00:55]} 1-0


[Site "https://www.chess.com"]